bitfinex/quotes_BTCUSD_20250812
["timestamp","ask_amount","ask_price","bid_price","bid_amount"]
[1755011229721,0.17804362,119600.0,119590.0,0.22772325]
[1755011229936,0.17804362,119600.0,119590.0,0.22872325]
[1755011230399,0.17804362,119600.0,119590.0,0.145]
[1755011230829,0.17904362,119600.0,119590.0,0.145]
[1755011231524,0.20180362,119600.0,119590.0,0.145]
[1755011232182,0.17476362,119600.0,119590.0,0.695615]
[1755011232396,0.17998558,119600.0,119590.0,0.700765]
[1755011232614,0.0127615,119600.0,119590.0,0.95072631]
[1755011233263,0.17217211,119600.0,119590.0,0.78348825]
[1755011233480,0.17217211,119600.0,119590.0,0.95072631]
[1755011233697,0.00494803,119600.0,119590.0,0.40011131]
[1755011233903,0.00494803,119600.0,119590.0,0.95072631]
[1755011234106,0.00394803,119600.0,119590.0,0.94972631]
[1755011234345,0.00394803,119600.0,119590.0,0.78348825]
[1755011234759,0.00394803,119600.0,119590.0,0.95072631]
[1755011234981,0.00394803,119600.0,119590.0,0.95172631]
[1755011236457,0.17117211,119600.0,119590.0,0.95172631]
[1755011236681,0.00394803,119600.0,119590.0,0.95172631]
[1755011237267,0.17117211,119600.0,119590.0,0.95172631]
[1755011237859,0.17117211,119600.0,119590.0,0.23387325]
[1755011238076,0.17319211,119600.0,119590.0,0.22772325]
[1755011238294,0.17319211,119600.0,119590.0,0.145]
[1755011238502,0.17350211,119600.0,119590.0,0.145]
[1755011238925,0.17350211,119600.0,119590.0,0.002]
[1755011239186,0.21423605,119600.0,119590.0,0.001]
[1755011239402,0.76485105,119600.0,119590.0,0.001]
[1755011239618,0.76485105,119600.0,119570.0,0.14296]
[1755011239619,0.16725204,119580.0,119570.0,0.14296]
[1755011239836,0.16927204,119580.0,119570.0,0.14296]
[1755011240936,0.17027204,119580.0,119570.0,0.1430087]
[1755011241366,0.17422007,119580.0,119570.0,0.1430087]
[1755011241788,0.17422007,119580.0,119570.0,4.87e-05]
[1755011242939,0.17027204,119580.0,119570.0,0.1428887]
[1755011243178,0.17422007,119580.0,119570.0,0.1480387]
[1755011243393,0.17422007,119580.0,119570.0,0.1428887]
[1755011244024,0.17220007,119580.0,119570.0,0.1480387]
[1755011244451,0.17422007,119580.0,119570.0,0.1480387]
[1755011244876,0.17422007,119580.0,119570.0,0.1428887]
[1755011247094,0.17618007,119580.0,119570.0,0.1428887]
[1755011247311,0.17618007,119580.0,119570.0,4.87e-05]
[1755011247541,0.17422007,119580.0,119570.0,4.87e-05]
[1755011247766,0.16825204,119580.0,119570.0,0.0051987]
[1755011247953,0.17220007,119580.0,119570.0,0.5558137]
[1755011248622,0.17388007,119580.0,119570.0,0.0051987]
[1755011248827,0.17388007,119580.0,119570.0,4.87e-05]
[1755011249939,0.17220007,119580.0,119570.0,0.0051987]
[1755011250366,0.17220007,119580.0,119570.0,4.87e-05]
[1755011250777,0.17220007,119580.0,119570.0,0.56425736]
[1755011251551,0.17220007,119580.0,119570.0,4.87e-05]
[1755011251750,0.17220007,119580.0,119570.0,0.56425736]
[1755011252548,0.17220007,119580.0,119570.0,4.87e-05]
[1755011252758,0.17418007,119580.0,119570.0,4.87e-05]
[1755011254315,0.17649007,119580.0,119570.0,4.87e-05]
[1755011254960,0.84618198,119580.0,119570.0,4.87e-05]
[1755011255383,0.28197332,119580.0,119570.0,4.87e-05]
[1755011256290,0.28097332,119580.0,119570.0,4.87e-05]
[1755011256510,0.28997332,119580.0,119570.0,4.87e-05]
[1755011257228,0.42938332,119580.0,119570.0,4.87e-05]
[1755011257449,0.40662332,119580.0,119570.0,4.87e-05]
[1755011258311,0.40893332,119580.0,119570.0,4.87e-05]
[1755011258760,1.05562641,119580.0,119570.0,4.87e-05]
[1755011258991,0.00394803,119530.0,119520.0,0.73154467]
[1755011259212,0.00394803,119530.0,119520.0,0.8753108]
[1755011259428,0.00394803,119530.0,119520.0,0.8783208]
[1755011259872,0.17127004,119530.0,119520.0,0.96104405]
[1755011260327,0.17127004,119530.0,119520.0,1.52525271]
[1755011260542,0.17127004,119530.0,119520.0,1.52725271]
[1755011260770,0.17127004,119530.0,119520.0,0.95308777]
[1755011262721,0.00394803,119530.0,119520.0,0.95308777]
[1755011262925,0.00394803,119540.0,119530.0,0.16732201]
[1755011263143,0.00394803,119540.0,119530.0,0.80544916]
[1755011263359,0.00394803,119540.0,119530.0,0.80636764]
[1755011263609,0.00394803,119540.0,119530.0,0.81460309]
[1755011263827,0.00394803,119540.0,119530.0,0.26335071]
[1755011264040,0.00394803,119540.0,119530.0,0.81460309]
[1755011264249,0.00394803,119540.0,119530.0,0.81560309]
[1755011264665,0.00394803,119540.0,119530.0,0.86560309]
[1755011264896,0.17125604,119540.0,119530.0,0.86560309]
[1755011266087,0.17125604,119540.0,119530.0,0.86660309]
[1755011266948,0.17125604,119540.0,119530.0,0.81660309]
[1755011269825,0.17125604,119540.0,119530.0,0.64928108]
[1755011270049,0.17323604,119540.0,119530.0,0.64928108]
[1755011270257,0.17323604,119540.0,119530.0,0.15634545]
[1755011270474,0.17323604,119540.0,119530.0,0.002]
[1755011271123,0.17323604,119540.0,119530.0,0.55325238]
[1755011271557,0.17323604,119540.0,119530.0,0.002]
[1755011271769,0.17323604,119540.0,119530.0,0.001]
[1755011272201,0.17523604,119540.0,119530.0,0.001]
[1755011272407,0.17523604,119540.0,119530.0,0.55225238]
[1755011272623,0.17523604,119540.0,119530.0,0.001]
[1755011272862,0.16732201,119530.0,119520.0,0.72046907]
[1755011273080,0.17127004,119530.0,119520.0,0.80525232]
[1755011273295,0.17127004,119530.0,119520.0,0.97258833]
[1755011273513,0.17127004,119530.0,119520.0,0.80525232]
[1755011273968,0.17331004,119530.0,119520.0,0.25399994]
[1755011274201,0.17331004,119530.0,119520.0,0.77746176]
[1755011274420,0.17331004,119530.0,119520.0,0.77540176]
[1755011274639,0.17331004,119530.0,119520.0,0.22414938]
[1755011275066,0.17331004,119530.0,119520.0,0.00014613]
[1755011275278,0.17331004,119530.0,119520.0,0.14126613]
[1755011275491,0.17331004,119530.0,119520.0,0.00014613]
[1755011277639,0.22149985,119530.0,119520.0,0.00014613]
[1755011277866,0.19701004,119530.0,119520.0,0.00014613]
[1755011278727,0.17331004,119530.0,119520.0,0.00014613]
[1755011279415,0.17183004,119530.0,119520.0,0.00014613]
[1755011279845,0.16983004,119530.0,119520.0,0.00014613]
[1755011280304,0.19353004,119530.0,119520.0,0.00014613]
[1755011280557,0.9099901,119530.0,119520.0,1e-08]
[1755011280770,0.92675401,119530.0,119520.0,1e-08]
[1755011280999,0.86939858,119530.0,119520.0,1e-08]
[1755011282133,0.30438229,119530.0,119520.0,1e-08]
[1755011283264,0.86939858,119530.0,119520.0,1e-08]
[1755011283948,0.87164858,119530.0,119520.0,1e-08]
[1755011284196,0.95413301,119530.0,119520.0,1e-08]
[1755011284663,0.38911672,119530.0,119520.0,1e-08]
[1755011284874,0.95413301,119530.0,119520.0,1e-08]
[1755011286437,0.87164858,119530.0,119520.0,1e-08]
[1755011286668,0.30663229,119530.0,119520.0,1e-08]
[1755011286888,0.87164858,119530.0,119520.0,1e-08]
[1755011287108,0.8890976,119530.0,119520.0,1e-08]
[1755011287306,0.32408131,119530.0,119520.0,1e-08]
[1755011287534,0.97158203,119530.0,119520.0,1e-08]
[1755011288221,0.17132605,119490.0,119480.0,0.00295]
[1755011288450,0.31348605,119490.0,119480.0,0.0029987]
[1755011288665,0.31348605,119490.0,119480.0,0.0049887]
[1755011288898,0.31144605,119490.0,119480.0,0.57000499]
[1755011289316,0.17132605,119490.0,119480.0,0.57000499]
[1755011289971,0.17132605,119490.0,119480.0,0.57100499]
[1755011290192,0.17132605,119490.0,119480.0,1.13602128]
[1755011290410,0.00394803,119490.0,119480.0,1.52721656]
[1755011291235,0.00394803,119500.0,119490.0,0.16736751]
[1755011291490,0.00394803,119500.0,119490.0,0.82213927]
[1755011291695,0.17131204,119500.0,119490.0,0.82004705]
[1755011292560,0.17331204,119500.0,119490.0,0.82004705]
[1755011292779,0.17331204,119500.0,119490.0,0.08766325]
[1755011293009,0.17331204,119500.0,119490.0,0.77928482]
[1755011293463,0.17331204,119500.0,119490.0,0.94666284]
[1755011294326,0.17331204,119500.0,119490.0,0.39508127]
[1755011294535,0.17331204,119500.0,119490.0,0.94666284]
[1755011295408,0.00494803,119500.0,119490.0,0.94666284]
[1755011295641,0.00494803,119500.0,119490.0,0.94766284]
[1755011295857,0.17131204,119500.0,119490.0,0.94766284]
[1755011296514,0.17131204,119500.0,119490.0,0.94666284]
[1755011296757,0.17131204,119500.0,119490.0,0.94966284]
[1755011296976,0.17131204,119500.0,119490.0,0.78228482]
[1755011297189,0.17131204,119500.0,119490.0,0.09266325]
[1755011297417,0.17131204,119500.0,119490.0,0.23242325]
[1755011297640,0.17131204,119500.0,119490.0,0.09266325]
[1755011298068,0.17131204,119500.0,119490.0,0.22938325]
[1755011298481,0.17131204,119500.0,119490.0,0.94834284]
[1755011298694,0.16736401,119500.0,119490.0,0.94834284]
[1755011298907,0.00394803,119500.0,119490.0,0.94934284]
[1755011299116,0.17131204,119500.0,119490.0,0.94934284]
[1755011299781,0.17131204,119500.0,119490.0,0.77996482]
[1755011300258,0.17131204,119500.0,119490.0,0.22938325]
[1755011300477,0.17131204,119500.0,119490.0,0.78096482]
[1755011300756,0.17329204,119500.0,119490.0,0.00399]
[1755011300965,0.17329204,119500.0,119490.0,0.002]
[1755011301827,0.17329204,119500.0,119490.0,0.00399]
[1755011302278,0.17329204,119500.0,119490.0,0.002]
[1755011303161,0.17329204,119500.0,119490.0,0.00694]
[1755011303624,0.17329204,119500.0,119490.0,0.002]
[1755011304286,0.17329204,119500.0,119490.0,0.00694]
[1755011304721,0.17329204,119500.0,119490.0,0.002]
[1755011304955,0.19973026,119500.0,119490.0,0.002]
[1755011305439,0.17329204,119500.0,119490.0,0.002]
[1755011306350,0.16737802,119490.0,119480.0,4.87e-05]
[1755011306577,0.31144605,119490.0,119480.0,4.87e-05]
[1755011306786,0.31573605,119490.0,119480.0,4.87e-05]
[1755011307706,0.31573605,119490.0,119480.0,0.0010487]
[1755011307911,0.48158563,119490.0,119480.0,0.0010487]
[1755011308374,0.48493763,119490.0,119480.0,0.0020487]
[1755011308580,1.0365192,119490.0,119480.0,0.0020487]
[1755011308996,0.48493763,119490.0,119480.0,0.0010487]
[1755011309440,1.0395192,119490.0,119480.0,0.0010487]
[1755011309895,0.72292163,119480.0,119470.0,0.0004]
[1755011310121,0.17136808,119460.0,119450.0,0.0004]
[1755011310337,0.31322808,119460.0,119450.0,0.00088784]
[1755011310819,0.31322808,119460.0,119420.0,0.17584938]
[1755011310820,0.17143005,119430.0,119420.0,0.14271]
[1755011311051,0.17143005,119430.0,119420.0,0.1447]
[1755011312172,0.17143005,119430.0,119420.0,0.69628157]
[1755011312393,0.17143005,119430.0,119420.0,0.1447]
[1755011312830,0.17143005,119430.0,119420.0,0.69628157]
[1755011313050,0.17143005,119430.0,119420.0,0.1447]
[1755011313269,0.17243005,119430.0,119420.0,0.69628157]
[1755011313487,0.17243005,119430.0,119420.0,0.94648095]
[1755011313488,0.00494803,119430.0,119420.0,0.94648095]
[1755011313910,0.17241014,119430.0,119420.0,0.94748095]
[1755011314350,0.17241014,119430.0,119420.0,0.00594]
[1755011314557,0.20623445,119430.0,119420.0,0.001]
[1755011315228,0.20623445,119430.0,119420.0,0.007]
[1755011315412,0.20623445,119430.0,119420.0,0.001]
[1755011315413,0.34794445,119430.0,119420.0,0.001]
[1755011315669,0.34832445,119430.0,119420.0,0.001]
[1755011316146,0.31350014,119430.0,119420.0,0.001]
[1755011316374,0.17143818,119410.0,119400.0,0.00335]
[1755011316605,0.17336818,119410.0,119400.0,0.00547]
[1755011316812,0.31312818,119410.0,119400.0,0.0004]
[1755011317247,0.31351818,119410.0,119400.0,0.0004]
[1755011317470,0.36161886,119410.0,119400.0,0.0004]
[1755011317691,0.44434211,119410.0,119400.0,0.00044871]
[1755011318116,0.44434211,119410.0,119400.0,0.00144871]
[1755011318332,1.02085368,119410.0,119400.0,0.00144871]
[1755011318543,1.02085368,119410.0,119400.0,0.00044871]
[1755011318781,1.02185368,119410.0,119400.0,0.00044871]
[1755011318993,0.47027211,119410.0,119400.0,0.00044871]
[1755011319206,1.02185368,119410.0,119400.0,0.00044871]
[1755011319423,0.47027211,119410.0,119400.0,0.00044871]
[1755011319678,0.22246886,119410.0,119400.0,0.00256871]
[1755011319895,0.16849015,119410.0,119400.0,0.00564871]
[1755011320110,0.17149015,119410.0,119400.0,0.17103289]
[1755011320327,0.17543818,119410.0,119400.0,0.00352871]
[1755011320557,0.17243818,119410.0,119400.0,0.00562251]
[1755011320794,0.17143661,119420.0,119410.0,0.16749015]
[1755011321036,0.00394803,119430.0,119420.0,0.16746339]
[1755011321250,0.179781,119440.0,119420.0,0.94444821]
[1755011321461,0.179781,119440.0,119430.0,0.00209327]
[1755011321690,0.179781,119440.0,119430.0,0.00517327]
[1755011321907,0.179781,119440.0,119430.0,0.00308]
[1755011322135,0.16746211,119430.0,119420.0,0.22232325]
[1755011322368,0.17141014,119430.0,119420.0,0.22540325]
[1755011322817,0.00394803,119430.0,119420.0,0.94446095]
[1755011323072,0.17141014,119430.0,119420.0,0.94446095]
[1755011323554,0.17141014,119430.0,119420.0,0.39287938]
[1755011323826,0.17141014,119430.0,119420.0,0.39787938]
[1755011324293,0.17141014,119430.0,119420.0,0.23040325]
[1755011324509,0.17141014,119430.0,119420.0,0.78398482]
[1755011324967,0.17141014,119430.0,119420.0,0.23240325]
[1755011325417,0.17141014,119430.0,119420.0,0.22740325]
[1755011325847,0.17141014,119430.0,119420.0,0.14468]
[1755011326475,0.17141014,119430.0,119420.0,0.00508]
[1755011326684,0.17141014,119430.0,119420.0,0.002]
[1755011326892,0.17141014,119430.0,119420.0,0.005]
[1755011327102,0.20613445,119430.0,119420.0,0.003]
[1755011327324,0.31053014,119430.0,119420.0,0.003]
[1755011327544,0.16747613,119420.0,119410.0,0.14216]
[1755011327765,0.14747613,119420.0,119410.0,0.22488325]
[1755011328394,0.15142416,119420.0,119410.0,0.00308]
[1755011329225,0.15142416,119420.0,119410.0,0.17266377]
[1755011329436,0.15142416,119420.0,119410.0,0.2532934]
[1755011329651,0.00394803,119420.0,119410.0,0.80487497]
[1755011330082,0.00394803,119420.0,119410.0,0.80787497]
[1755011330756,0.17142416,119420.0,119410.0,0.80787497]
[1755011331209,0.17142416,119420.0,119410.0,0.2562934]
[1755011331414,0.00394803,119420.0,119410.0,0.80787497]
[1755011331836,0.17142416,119420.0,119410.0,0.2562934]
[1755011332361,0.17142416,119420.0,119410.0,0.80787497]
[1755011332826,0.17142416,119420.0,119410.0,0.08880325]
[1755011333049,0.17142416,119420.0,119410.0,0.2562934]
[1755011333304,0.17142416,119420.0,119410.0,0.80787497]
[1755011333524,0.17142416,119420.0,119410.0,0.08880325]
[1755011333991,0.17142416,119420.0,119410.0,0.22488325]
[1755011334250,0.20531286,119420.0,119410.0,0.003]
[1755011334743,0.20762286,119420.0,119410.0,0.003]
[1755011334978,0.31427611,119420.0,119410.0,0.003]
[1755011335211,0.86585768,119420.0,119410.0,0.003]
[1755011335450,0.17143818,119410.0,119400.0,0.00044871]
[1755011335688,0.31047818,119410.0,119400.0,0.00044871]
[1755011335926,0.31278818,119410.0,119400.0,0.00044871]
[1755011336425,0.49599433,119410.0,119400.0,0.00044871]
[1755011336657,0.4135099,119410.0,119400.0,0.00044871]
[1755011337364,0.4374399,119410.0,119400.0,0.00044871]
[1755011337871,0.4404399,119410.0,119400.0,0.00044871]
[1755011338107,0.99502147,119410.0,119400.0,0.00044871]
[1755011338338,0.52592433,119410.0,119400.0,0.00044871]
[1755011338573,1.0775059,119410.0,119400.0,0.00044871]
[1755011338806,0.52592433,119410.0,119400.0,0.00044871]
[1755011339298,0.54337335,119410.0,119400.0,0.00044871]
[1755011339513,1.09495492,119410.0,119400.0,0.00044871]
[1755011340444,0.54337335,119410.0,119400.0,0.00044871]
[1755011341309,0.46088892,119410.0,119400.0,0.00044871]
[1755011341524,0.46283892,119410.0,119400.0,0.00044871]
[1755011341732,0.4191499,119410.0,119400.0,0.00044871]
[1755011342681,0.4214599,119410.0,119400.0,0.00048871]
[1755011343121,0.17145221,119400.0,119390.0,0.0004]
[1755011343357,0.89019146,119400.0,119390.0,0.0005462]
[1755011343562,0.35891836,119400.0,119390.0,0.0005462]
[1755011344232,0.35660836,119400.0,119390.0,0.0005462]
[1755011344449,0.27517393,119400.0,119390.0,0.0026662]
[1755011344670,0.27517393,119400.0,119390.0,0.0057462]
[1755011344909,0.27712393,119400.0,119390.0,0.0026662]
[1755011345132,0.17445221,119400.0,119390.0,0.0057462]
[1755011345811,0.17445221,119400.0,119390.0,0.55520777]
[1755011346262,0.17445221,119400.0,119390.0,0.1427862]
[1755011346527,0.1840306,119400.0,119390.0,0.1427862]
[1755011346741,0.17145221,119400.0,119390.0,0.1427862]
[1755011346964,0.17245221,119400.0,119390.0,0.1427862]
[1755011347624,0.17245221,119400.0,119390.0,0.69436777]
[1755011348064,0.17245221,119400.0,119390.0,0.94460923]
[1755011348286,0.00494803,119400.0,119390.0,0.94460923]
[1755011348494,0.17245221,119400.0,119390.0,0.94460923]
[1755011348943,0.17245221,119400.0,119390.0,0.94669923]
[1755011349405,0.00494803,119400.0,119390.0,0.94669923]
[1755011349627,0.17145221,119400.0,119390.0,0.94669923]
[1755011350089,0.17145221,119400.0,119390.0,0.94869923]
[1755011350315,0.17145221,119400.0,119390.0,0.39711766]
[1755011350535,0.17145221,119400.0,119390.0,0.94869923]
[1755011350941,0.00394803,119400.0,119390.0,0.94869923]
[1755011351287,0.00394803,119410.0,119400.0,0.16750418]
[1755011351504,0.00394803,119410.0,119400.0,0.25441123]
[1755011351721,0.00394803,119410.0,119400.0,0.807059]
[1755011352174,0.00394803,119410.0,119400.0,0.25547743]
[1755011352406,0.00394803,119410.0,119400.0,0.857059]
[1755011353290,0.00494803,119410.0,119400.0,0.30547743]
[1755011353517,0.00494803,119410.0,119400.0,0.857059]
[1755011354449,0.17243818,119410.0,119400.0,0.857059]
[1755011355960,0.00494803,119410.0,119400.0,0.857059]
[1755011356178,0.001,119410.0,119400.0,1.42608959]
[1755011357033,0.001,119410.0,119400.0,0.87450802]
[1755011358872,0.001,119410.0,119400.0,1.01334802]
[1755011360094,0.001,119410.0,119400.0,1.03792585]
[1755011360313,0.001,119410.0,119400.0,1.58950742]
[1755011360563,0.001,119410.0,119400.0,0.48634428]
[1755011360778,0.001,119410.0,119400.0,1.03583585]
[1755011361192,0.001,119410.0,119400.0,1.03267585]
[1755011362490,0.17142438,119420.0,119410.0,0.16749015]
[1755011362706,0.00394803,119420.0,119410.0,0.80179497]
[1755011362918,0.17142416,119420.0,119410.0,0.80179497]
[1755011363785,0.17142416,119420.0,119410.0,0.80379497]
[1755011366072,0.17142416,119420.0,119410.0,0.63630482]
[1755011366480,0.17142416,119420.0,119410.0,0.80379497]
[1755011367250,0.17142416,119420.0,119410.0,0.80588497]
[1755011367504,0.17583297,119440.0,119420.0,0.16747613]
[1755011367726,0.179781,119440.0,119430.0,0.93453693]
[1755011367926,0.179781,119440.0,119430.0,0.93769693]
[1755011368262,0.1674722,119450.0,119440.0,0.16744809]
[1755011368501,0.17142023,119450.0,119440.0,0.80700291]
[1755011368920,0.17359023,119450.0,119440.0,0.22098945]
[1755011369320,0.17359023,119450.0,119440.0,0.38843754]
[1755011369541,0.17359023,119450.0,119440.0,0.94526911]
[1755011369542,0.17142023,119450.0,119440.0,0.94526911]
[1755011370162,0.17142023,119450.0,119440.0,0.94726911]
[1755011370370,0.00394803,119450.0,119440.0,0.94726911]
[1755011370779,0.1713821,119450.0,119440.0,0.94726911]
[1755011370994,0.00394803,119450.0,119440.0,0.94726911]
[1755011371210,0.17977841,119460.0,119450.0,0.16743407]
[1755011371414,0.18175841,119460.0,119450.0,0.80383181]
[1755011371621,0.18175841,119460.0,119450.0,0.25015732]
[1755011371866,0.17781038,119460.0,119450.0,0.80173889]
[1755011372088,0.17135407,119470.0,119460.0,0.16742005]
[1755011372288,0.17352407,119470.0,119460.0,0.93968487]
[1755011372492,0.17352407,119470.0,119460.0,0.22068325]
[1755011373080,0.17352407,119470.0,119460.0,0.13796]
[1755011373302,0.16742005,119460.0,119450.0,0.00316]
[1755011373504,0.16959005,119460.0,119450.0,0.22384325]
[1755011373705,0.16742005,119460.0,119450.0,0.94494889]
[1755011373961,0.16959005,119460.0,119450.0,0.77226482]
[1755011374698,0.16742005,119460.0,119450.0,0.77751482]
[1755011374900,0.16742005,119460.0,119450.0,0.22068325]
[1755011375107,0.16940005,119460.0,119450.0,0.22068325]
[1755011375537,0.16940005,119460.0,119450.0,0.77226482]
[1755011375720,0.17040005,119460.0,119450.0,0.77226482]
[1755011375876,0.17140005,119460.0,119450.0,0.77226482]
[1755011376088,0.17140005,119460.0,119450.0,0.22068325]
[1755011376696,0.17140005,119460.0,119450.0,0.22277325]
[1755011377082,0.16942005,119460.0,119450.0,0.77748482]
[1755011377734,0.16942005,119460.0,119450.0,0.22590325]
[1755011377884,0.16942005,119460.0,119450.0,0.77748482]
[1755011379326,0.17140005,119460.0,119450.0,0.77748482]
[1755011379903,0.16942005,119460.0,119450.0,0.77748482]
[1755011380101,0.16942005,119460.0,119450.0,0.77226482]
[1755011380305,0.17140005,119460.0,119450.0,0.77226482]
[1755011380529,0.17140005,119460.0,119450.0,0.08481325]
[1755011380530,0.17534808,119460.0,119450.0,0.08481325]
[1755011380731,0.17534808,119460.0,119450.0,0.22064325]
[1755011381198,0.17534808,119460.0,119450.0,0.83601293]
[1755011381404,0.17336808,119460.0,119450.0,0.84123293]
[1755011384205,0.17534808,119460.0,119450.0,0.84123293]
[1755011385401,0.17534808,119460.0,119450.0,0.27586325]
[1755011385627,0.17534808,119460.0,119450.0,0.83601293]
[1755011386075,0.17534808,119460.0,119450.0,0.05]
[1755011386747,0.17336808,119460.0,119450.0,0.62058968]
[1755011387214,0.17534808,119460.0,119450.0,0.05]
[1755011387448,0.17764808,119460.0,119450.0,0.05]
[1755011387672,0.17534808,119460.0,119450.0,0.05]
[1755011388026,0.17544808,119460.0,119450.0,0.61536968]
[1755011388481,0.17544808,119460.0,119450.0,0.62058968]
[1755011388861,0.17544808,119460.0,119450.0,0.61745968]
[1755011389482,0.17544808,119460.0,119450.0,0.62058968]
[1755011389686,0.17336808,119460.0,119450.0,0.62058968]
[1755011390131,0.17336808,119460.0,119450.0,0.05522]
[1755011390331,0.17534808,119460.0,119450.0,0.61536968]
[1755011390505,0.17534808,119460.0,119450.0,0.62058968]
[1755011390660,0.17534808,119460.0,119450.0,0.05]
[1755011391074,0.16743407,119450.0,119440.0,0.70339588]
[1755011391275,0.16941407,119450.0,119440.0,0.78611913]
[1755011392423,0.16941407,119450.0,119440.0,0.22174945]
[1755011392623,0.1733621,119450.0,119440.0,0.1390262]
[1755011393093,0.1733621,119450.0,119440.0,0.1890262]
[1755011393929,0.1733621,119450.0,119440.0,0.75961588]
[1755011395916,0.1713821,119450.0,119440.0,0.1942462]
[1755011396172,0.1713821,119450.0,119440.0,0.75961588]
[1755011397812,0.1713821,119450.0,119440.0,0.1942462]
[1755011398031,0.1713821,119450.0,119440.0,0.75961588]
[1755011398752,0.1713821,119450.0,119440.0,0.92706397]
[1755011398959,0.1713821,119450.0,119440.0,0.75961588]
[1755011399858,0.1713821,119450.0,119440.0,0.92706397]
[1755011400085,0.1713821,119450.0,119440.0,1.5751569]
[1755011400417,0.1713821,119450.0,119440.0,1.00978722]
[1755011400622,0.00394803,119450.0,119440.0,1.5751569]
[1755011400937,0.17136808,119460.0,119450.0,0.16743407]
[1755011401138,0.17136808,119460.0,119450.0,0.82283992]
[1755011401419,0.17972437,119470.0,119460.0,0.16742005]
[1755011401569,0.17972437,119470.0,119460.0,0.87485248]
[1755011401786,0.17972437,119470.0,119460.0,0.95861298]
[1755011402387,0.17972437,119470.0,119460.0,0.3932433]
[1755011402554,0.18172437,119470.0,119460.0,0.95861298]
[1755011403637,0.17972437,119470.0,119460.0,0.95861298]
[1755011403812,0.17972437,119470.0,119460.0,0.95961298]
[1755011404212,0.17972437,119470.0,119460.0,0.3942433]
[1755011404427,0.17972437,119470.0,119460.0,0.95961298]
[1755011404784,0.17972437,119470.0,119460.0,0.79219293]
[1755011405483,0.17972437,119470.0,119460.0,0.95961298]
[1755011405693,0.17972437,119470.0,119460.0,0.79219293]
[1755011406104,0.17972437,119470.0,119460.0,0.95961298]
[1755011408422,0.17972437,119470.0,119460.0,0.79219293]
[1755011408876,0.17972437,119470.0,119460.0,0.22682325]
[1755011409094,0.17972437,119470.0,119460.0,0.79219293]
[1755011409312,0.17972437,119470.0,119460.0,0.95961298]
[1755011409532,0.17972437,119470.0,119460.0,0.79219293]
[1755011409952,0.17972437,119470.0,119460.0,0.95961298]
[1755011410384,0.00394803,119470.0,119460.0,0.95961298]
[1755011410588,0.17135407,119470.0,119460.0,0.3942433]
[1755011410810,0.17135407,119470.0,119460.0,0.95961298]
[1755011411256,0.17585337,119480.0,119470.0,0.16740604]
[1755011411447,0.17585337,119480.0,119470.0,0.95753154]
[1755011411653,0.1798014,119480.0,119470.0,0.95842897]
[1755011412290,0.17134006,119480.0,119470.0,0.95842897]
[1755011412944,0.17234006,119480.0,119470.0,0.95842897]
[1755011413363,0.17334006,119480.0,119470.0,0.95842897]
[1755011414076,0.17234006,119480.0,119470.0,0.95842897]
[1755011414719,0.17234006,119480.0,119470.0,0.39305929]
[1755011414923,0.17234006,119480.0,119470.0,0.22565325]
[1755011415189,0.17234006,119480.0,119470.0,0.95842897]
[1755011415410,0.17334006,119480.0,119470.0,0.95842897]
[1755011415623,0.17334006,119480.0,119470.0,0.79102293]
[1755011415823,0.17134006,119480.0,119470.0,0.79102293]
[1755011416888,0.17134006,119480.0,119470.0,0.22565325]
[1755011417116,0.17134006,119480.0,119470.0,0.79929629]
[1755011417686,0.17134006,119480.0,119470.0,0.79102293]
[1755011418156,0.17134006,119480.0,119470.0,0.95842897]
[1755011418364,0.17134006,119480.0,119470.0,0.79102293]
[1755011418985,0.17134006,119480.0,119470.0,0.22565325]
[1755011419195,0.17134006,119480.0,119470.0,0.79102293]
[1755011419619,0.17332006,119480.0,119470.0,0.79102293]
[1755011419827,0.17332006,119480.0,119470.0,0.22565325]
[1755011420243,0.17332006,119480.0,119470.0,0.79102293]
[1755011420450,0.17134006,119480.0,119470.0,0.79102293]
[1755011420881,0.17134006,119480.0,119470.0,0.22565325]
[1755011421085,0.17332006,119480.0,119470.0,0.78581293]
[1755011421288,0.17332006,119480.0,119470.0,0.79094293]
[1755011421289,0.17134006,119480.0,119470.0,0.79094293]
[1755011421494,0.17332006,119480.0,119470.0,0.79094293]
[1755011422141,0.17134006,119480.0,119470.0,0.79094293]
[1755011422893,0.17134006,119480.0,119470.0,0.22557325]
[1755011423335,0.17134006,119480.0,119470.0,0.79094293]
[1755011425033,0.00394803,119480.0,119470.0,0.95834897]
[1755011425965,0.17141432,119490.0,119480.0,0.16739203]
[1755011426185,0.17141432,119490.0,119480.0,0.95530496]
[1755011426373,0.17141432,119490.0,119480.0,1.52366464]
[1755011426374,0.00394803,119490.0,119480.0,1.52366464]
[1755011426742,0.00394803,119490.0,119480.0,0.95829496]
[1755011427177,0.1728126,119490.0,119480.0,0.95829496]
[1755011427551,0.1728126,119490.0,119480.0,0.39292528]
[1755011427831,0.1728126,119490.0,119480.0,0.22553325]
[1755011428042,0.1728126,119490.0,119480.0,0.95829496]
[1755011428180,0.1728126,119490.0,119480.0,0.96029496]
[1755011428635,0.1718126,119490.0,119480.0,0.79290293]
[1755011428841,0.1718126,119490.0,119480.0,0.08985325]
[1755011429072,0.1737926,119490.0,119480.0,0.09185325]
[1755011429298,0.1737926,119490.0,119480.0,0.22436325]
[1755011429480,0.1737926,119490.0,119480.0,0.08672325]
[1755011429704,0.73916228,119490.0,119480.0,0.22436325]
[1755011429909,0.1737926,119490.0,119480.0,0.22236325]
[1755011430291,0.74016228,119490.0,119480.0,0.002]
[1755011430534,0.74247228,119490.0,119480.0,0.13964]
[1755011430945,0.74247228,119490.0,119480.0,0.13764]
[1755011431144,0.74347228,119490.0,119480.0,0.13764]
[1755011431772,0.74116228,119490.0,119480.0,0.13764]
[1755011432395,0.1757926,119490.0,119480.0,0.13764]
[1755011433042,0.1757926,119490.0,119480.0,0.13738598]
[1755011433274,0.74116228,119490.0,119480.0,0.13738598]
[1755011433587,0.17136808,119460.0,119450.0,0.02812]
[1755011433810,0.17334808,119460.0,119450.0,0.25058325]
[1755011434002,0.17334808,119460.0,119450.0,0.22545325]
[1755011434239,0.17334808,119460.0,119450.0,0.22246325]
[1755011435052,0.17334808,119460.0,119450.0,0.22545325]
[1755011435258,0.17434808,119460.0,119450.0,0.22545325]
[1755011435671,0.17434808,119460.0,119450.0,0.22845325]
[1755011436083,0.17434808,119460.0,119450.0,0.22545325]
[1755011436495,0.17336808,119460.0,119450.0,0.22545325]
[1755011436701,0.17336808,119460.0,119450.0,0.79082293]
[1755011438199,0.17336808,119460.0,119450.0,0.22545325]
[1755011438404,0.17336808,119460.0,119450.0,0.22541325]
[1755011439867,0.17534808,119460.0,119450.0,0.22545325]
[1755011440533,0.17534808,119460.0,119450.0,0.27545325]
[1755011440773,0.17336808,119460.0,119450.0,0.27545325]
[1755011441253,0.17336808,119460.0,119450.0,0.84082293]
[1755011441791,0.17336808,119460.0,119450.0,0.27545325]